fUST/lending_fUST_20260523
["ID","MTS","AMOUNT","RATE_DAILY","PERIOD"]
[422855076,1779526247000,-500.0,0.00010136,2]
[422855083,1779526247000,-500.0,0.00010136,2]
[422855075,1779526247000,-500.0,0.00010136,2]
[422855078,1779526247000,-303.23061934,0.00010136,2]
[422855024,1779526247000,-529.51,9.863e-05,2]
[422855089,1779526247000,-840.85,0.00010136,2]
[422855088,1779526247000,-366.81751904,0.00010136,2]
[422855092,1779526247000,-500.0,0.00010136,2]
[422855091,1779526247000,-500.0,0.00010136,2]
[422855090,1779526247000,-500.0,0.00010136,2]
[422855064,1779526247000,-151.0,0.0001,2]
[422855084,1779526247000,-500.0,0.00010136,2]
[422855087,1779526247000,-500.0,0.00010136,2]
[422855085,1779526247000,-500.0,0.00010136,2]
[422855077,1779526247000,-500.0,0.00010136,2]
[422855074,1779526247000,-500.0,0.00010136,2]
[422855079,1779526247000,-500.0,0.00010136,2]
[422855080,1779526247000,-500.0,0.00010136,2]
[422855086,1779526247000,-832.66,0.00010136,2]
[422855068,1779526247000,-151.0,0.0001,2]
[422855023,1779526247000,-575.57,9.863e-05,2]
[422855060,1779526247000,-151.0,0.0001,2]
[422855059,1779526247000,-151.0,0.0001,2]
[422855025,1779526247000,-2132.37,9.863e-05,2]
[422855026,1779526247000,-13928.37,9.863e-05,2]
[422855030,1779526247000,-500.0,9.863e-05,2]
[422855032,1779526247000,-721.4,9.863e-05,2]
[422855035,1779526247000,-532.49,9.863e-05,2]
[422855037,1779526247000,-500.0,9.863e-05,2]
[422855033,1779526247000,-500.0,9.863e-05,2]
[422855038,1779526247000,-745.92,9.863e-05,2]
[422855036,1779526247000,-500.0,9.863e-05,2]
[422855040,1779526247000,-610.7,9.863e-05,2]
[422855039,1779526247000,-500.0,9.863e-05,2]
[422855041,1779526247000,-2174.04,9.863e-05,2]
[422855042,1779526247000,-500.0,9.863e-05,2]
[422855043,1779526247000,-1000.0,9.912e-05,2]
[422855022,1779526247000,-500.0,9.863e-05,2]
[422855044,1779526247000,-244.0,9.912e-05,2]
[422855058,1779526247000,-151.0,0.0001,2]
[422855055,1779526247000,-151.0,0.0001,2]
[422855052,1779526247000,-151.0,0.0001,2]
[422855053,1779526247000,-151.0,0.0001,2]
[422855031,1779526247000,-2723.21,9.863e-05,2]
[422855050,1779526247000,-151.0,0.0001,2]
[422855056,1779526247000,-151.0,0.0001,2]
[422855054,1779526247000,-151.0,0.0001,2]
[422855049,1779526247000,-151.0,0.0001,2]
[422855051,1779526247000,-151.0,0.0001,2]
[422855057,1779526247000,-151.0,0.0001,2]
[422855046,1779526247000,-10149.24466891,0.0001,2]
[422855047,1779526247000,-24000.0,0.0001,2]
[422855045,1779526247000,-733.25638426,9.919e-05,2]
[422855048,1779526247000,-160.0,0.0001,2]
[422855148,1779526248000,-532.49,0.00010136,2]
[422855141,1779526248000,-1174.78,0.00010136,2]
[422855139,1779526248000,-2132.37,0.00010136,2]
[422855137,1779526248000,-575.57,0.00010136,2]
[422855147,1779526248000,-500.0,0.00010136,2]
[422855127,1779526248000,-1666.23,0.00010136,2]
[422855133,1779526248000,-1038.68,0.00010136,2]
[422855129,1779526248000,-500.0,0.00010136,2]
[422855128,1779526248000,-500.0,0.00010136,2]
[422855131,1779526248000,-500.0,0.00010136,2]
[422855134,1779526248000,-833.18,0.00010136,2]
[422855130,1779526248000,-2074.76,0.00010136,2]
[422855132,1779526248000,-872.64,0.00010136,2]
[422855142,1779526248000,-1146.72,0.00010136,2]
[422855150,1779526248000,-500.0,0.00010136,2]
[422855140,1779526248000,-13928.37,0.00010136,2]
[422855154,1779526248000,-2174.04,0.00010136,2]
[422855124,1779526248000,-1205.29,0.00010136,2]
[422855159,1779526248000,-10149.24466891,0.000103,2]
[422855156,1779526248000,-500.0,0.00010137,2]
[422855160,1779526248000,-10149.24466891,0.000104,2]
[422855158,1779526248000,-2003.46483551,0.000102,2]
[422855149,1779526248000,-500.0,0.00010136,2]
[422855151,1779526248000,-745.92,0.00010136,2]
[422855153,1779526248000,-610.7,0.00010136,2]
[422855146,1779526248000,-721.4,0.00010136,2]
[422855145,1779526248000,-2723.21,0.00010136,2]
[422855143,1779526248000,-857.33,0.00010136,2]
[422855144,1779526248000,-500.0,0.00010136,2]
[422855138,1779526248000,-529.51,0.00010136,2]
[422855155,1779526248000,-263.9129,0.00010136,2]
[422855126,1779526248000,-2917.71,0.00010136,2]
[422855107,1779526248000,-500.0,0.00010136,2]
[422855135,1779526248000,-500.0,0.00010136,2]
[422855152,1779526248000,-500.0,0.00010136,2]
[422855097,1779526248000,-500.0,0.00010136,2]
[422855095,1779526248000,-500.0,0.00010136,2]
[422855093,1779526248000,-500.0,0.00010136,2]
[422855094,1779526248000,-500.0,0.00010136,2]
[422855098,1779526248000,-500.0,0.00010136,2]
[422855101,1779526248000,-500.0,0.00010136,2]
[422855100,1779526248000,-615.92427851,0.00010136,2]
[422855102,1779526248000,-500.0,0.00010136,2]
[422855106,1779526248000,-1654.99,0.00010136,2]
[422855108,1779526248000,-858.87,0.00010136,2]
[422855099,1779526248000,-509.95,0.00010136,2]
[422855110,1779526248000,-828.68,0.00010136,2]
[422855103,1779526248000,-500.0,0.00010136,2]
[422855104,1779526248000,-500.0,0.00010136,2]
[422855109,1779526248000,-500.0,0.00010136,2]
[422855105,1779526248000,-1110.27,0.00010136,2]
[422855125,1779526248000,-569.83,0.00010136,2]
[422855121,1779526248000,-756.83,0.00010136,2]
[422855116,1779526248000,-500.0,0.00010136,2]
[422855114,1779526248000,-500.0,0.00010136,2]
[422855115,1779526248000,-500.0,0.00010136,2]
[422855118,1779526248000,-2548.83,0.00010136,2]
[422855136,1779526248000,-500.0,0.00010136,2]
[422855119,1779526248000,-310.32523115,0.00010136,2]
[422855120,1779526248000,-500.0,0.00010136,2]
[422855111,1779526248000,-535.56,0.00010136,2]
[422855113,1779526248000,-500.0,0.00010136,2]
[422855122,1779526248000,-520.06,0.00010136,2]
[422855123,1779526248000,-836.84,0.00010136,2]
[422855112,1779526248000,-500.0,0.00010136,2]
[422855117,1779526248000,-875.63,0.00010136,2]
[422855096,1779526248000,-500.0,0.00010136,2]
[422855161,1779526248000,-693.5,0.000104,2]
[422855162,1779526248000,-11660.43543826,0.000104,2]
[422855194,1779526248000,-471.022274,0.0001041,2]
[422855196,1779526248000,-500.0,0.0001041,2]
[422855199,1779526248000,-471.022274,0.0001041,2]
[422855198,1779526248000,-500.0,0.0001041,2]
[422855200,1779526248000,-1110.27,0.0001041,2]
[422855202,1779526248000,-500.0,0.0001041,2]
[422855203,1779526248000,-858.87,0.0001041,2]
[422855201,1779526248000,-1654.99,0.0001041,2]
[422855209,1779526248000,-500.0,0.0001041,2]
[422855220,1779526248000,-2917.71,0.0001041,2]
[422855218,1779526248000,-1205.29,0.0001041,2]
[422855217,1779526248000,-836.84,0.0001041,2]
[422855208,1779526248000,-611.8543049,0.0001041,2]
[422855210,1779526248000,-500.0,0.0001041,2]
[422855211,1779526248000,-500.0,0.0001041,2]
[422855207,1779526248000,-456.97532741,0.0001041,2]
[422855213,1779526248000,-2548.83,0.0001041,2]
[422855157,1779526248000,-10149.24466891,0.000102,2]
[422855224,1779526248000,-2074.76,0.0001041,2]
[422855227,1779526248000,-1038.68,0.0001041,2]
[422855225,1779526248000,-500.0,0.0001041,2]
[422855223,1779526248000,-500.0,0.0001041,2]
[422855226,1779526248000,-872.64,0.0001041,2]
[422855195,1779526248000,-151.0,0.0001041,2]
[422855228,1779526248000,-833.18,0.0001041,2]
[422855221,1779526248000,-1666.23,0.0001041,2]
[422855216,1779526248000,-520.06,0.0001041,2]
[422855215,1779526248000,-756.83,0.0001041,2]
[422855214,1779526248000,-500.0,0.0001041,2]
[422855219,1779526248000,-569.83,0.0001041,2]
[422855212,1779526248000,-875.63,0.0001041,2]
[422855222,1779526248000,-500.0,0.0001041,2]
[422855197,1779526248000,-471.022274,0.0001041,2]
[422855206,1779526248000,-535.56,0.0001041,2]
[422855204,1779526248000,-500.0,0.0001041,2]
[422855170,1779526248000,-500.0,0.0001041,2]
[422855172,1779526248000,-500.0,0.0001041,2]
[422855169,1779526248000,-500.0,0.0001041,2]
[422855177,1779526248000,-500.0,0.0001041,2]
[422855175,1779526248000,-243.82055075,0.0001041,2]
[422855167,1779526248000,-500.0,0.0001041,2]
[422855171,1779526248000,-500.0,0.0001041,2]
[422855174,1779526248000,-500.0,0.0001041,2]
[422855205,1779526248000,-828.68,0.0001041,2]
[422855168,1779526248000,-500.0,0.0001041,2]
[422855176,1779526248000,-500.0,0.0001041,2]
[422855166,1779526248000,-363.24044085,0.0001041,2]
[422855164,1779526248000,-500.0,0.0001041,2]
[422855163,1779526248000,-2312.2534,0.0001041,2]
[422855165,1779526248000,-500.0,0.0001041,2]
[422855190,1779526248000,-509.95,0.0001041,2]
[422855173,1779526248000,-500.0,0.0001041,2]
[422855189,1779526248000,-516.25677923,0.0001041,2]
[422855179,1779526248000,-500.0,0.0001041,2]
[422855193,1779526248000,-471.022274,0.0001041,2]
[422855183,1779526248000,-500.0,0.0001041,2]
[422855186,1779526248000,-500.0,0.0001041,2]
[422855185,1779526248000,-500.0,0.0001041,2]
[422855187,1779526248000,-500.0,0.0001041,2]
[422855184,1779526248000,-500.0,0.0001041,2]
[422855188,1779526248000,-500.0,0.0001041,2]
[422855181,1779526248000,-500.0,0.0001041,2]
[422855180,1779526248000,-840.85,0.0001041,2]
[422855178,1779526248000,-832.66,0.0001041,2]
[422855192,1779526248000,-500.0,0.0001041,2]
[422855191,1779526248000,-500.0,0.0001041,2]
[422855182,1779526248000,-404.20686388,0.0001041,2]
[422855248,1779526249000,-2174.04,0.0001041,2]
[422855240,1779526249000,-721.4,0.0001041,2]
[422855247,1779526249000,-610.7,0.0001041,2]
[422855246,1779526249000,-500.0,0.0001041,2]
[422855238,1779526249000,-500.0,0.0001041,2]
[422855244,1779526249000,-500.0,0.0001041,2]
[422855243,1779526249000,-500.0,0.0001041,2]
[422855241,1779526249000,-500.0,0.0001041,2]
[422855239,1779526249000,-2723.21,0.0001041,2]
[422855236,1779526249000,-1146.72,0.0001041,2]
[422855233,1779526249000,-2132.37,0.0001041,2]
[422855245,1779526249000,-745.92,0.0001041,2]
[422855237,1779526249000,-857.33,0.0001041,2]
[422855230,1779526249000,-189.77838304,0.0001041,2]
[422855231,1779526249000,-575.57,0.0001041,2]
[422855229,1779526249000,-500.0,0.0001041,2]
[422855235,1779526249000,-1174.78,0.0001041,2]
[422855234,1779526249000,-13928.37,0.0001041,2]
[422855232,1779526249000,-529.51,0.0001041,2]
[422855251,1779526249000,-1265.00292476,0.00010469,7]
[422855242,1779526249000,-532.49,0.0001041,2]
[422855249,1779526249000,-500.0,0.00010411,2]
[422855256,1779526249000,-305.621802,0.000105,2]
[422855252,1779526249000,-10149.24466891,0.000105,2]
[422855250,1779526249000,-1460.20577348,0.00010469,7]
[422855272,1779526249000,-214.66945467,8.137e-05,2]
[422855269,1779526249000,-786.91831675,8.137e-05,2]
[422855266,1779526249000,-74.93274184,8.137e-05,2]
[422855268,1779526249000,-1330.26478548,8.137e-05,2]
[422855267,1779526249000,-438.87021569,8.137e-05,2]
[422855270,1779526249000,-152.0,5.575e-05,7]
[422855271,1779526249000,-2154.34448557,8.137e-05,2]
[422855264,1779526249000,-500.0,0.00010684,2]
[422855262,1779526249000,-2312.2534,0.00010684,2]
[422855258,1779526249000,-305.621802,0.000105,2]
[422855261,1779526249000,-6060.53320304,0.000106,2]
[422855259,1779526249000,-151.0,0.000105,2]
[422855260,1779526249000,-4088.71146587,0.000106,2]
[422855265,1779526249000,-58.21646419,0.00010684,2]
[422855257,1779526249000,-305.621802,0.000105,2]
[422855273,1779526249000,-177.85418741,0.00010684,2]
[422855255,1779526249000,-305.621802,0.000105,2]
[422855254,1779526249000,-61584.09262243,0.000105,2]
[422855253,1779526249000,-241577.46545695,0.000105,2]
[422855263,1779526249000,-598.01223545,0.00010684,2]
[422855295,1779526872000,-694.90138574,6.259e-05,2]
[422855298,1779526973000,-152.0,5.576e-05,7]
[422855308,1779527425000,230.352642,2.626e-05,2]
[422855349,1779527431000,-4953.59841635,5.307e-05,2]
[422855348,1779527431000,-46.40158365,5.307e-05,2]
[422855351,1779527431000,-5000.0,5.361e-05,2]
[422855354,1779527431000,-300.0,5.467e-05,2]
[422855352,1779527431000,-727.3916125,5.415e-05,2]
[422855355,1779527431000,-300.0,5.467e-05,2]
[422855353,1779527431000,-300.0,5.467e-05,2]
[422855350,1779527431000,-548.68602792,5.334e-05,2]
[422855378,1779527432000,-500.0,6.386e-05,2]
[422855371,1779527432000,-300.0,6.011e-05,2]
[422855368,1779527432000,-300.0,5.467e-05,2]
[422855367,1779527432000,-300.0,5.467e-05,2]
[422855365,1779527432000,-300.0,5.467e-05,2]
[422855377,1779527432000,-200.0,6.11e-05,7]
[422855370,1779527432000,-300.0,5.467e-05,2]
[422855376,1779527432000,-200.0,6.11e-05,2]
[422855357,1779527432000,-300.0,5.467e-05,2]
[422855364,1779527432000,-300.0,5.467e-05,2]
[422855359,1779527432000,-300.0,5.467e-05,2]
[422855362,1779527432000,-300.0,5.467e-05,2]
[422855360,1779527432000,-300.0,5.467e-05,2]
[422855363,1779527432000,-300.0,5.467e-05,2]
[422855366,1779527432000,-300.0,5.467e-05,2]
[422855372,1779527432000,-1010.82202683,6.072e-05,2]
[422855388,1779527432000,-541.96496575,6.681e-05,2]
[422855369,1779527432000,-300.0,5.467e-05,2]
[422855392,1779527432000,-56.14017836,6.681e-05,2]
[422855390,1779527432000,-541.96496575,6.681e-05,2]
[422855373,1779527432000,-189.17797317,6.072e-05,2]
[422855391,1779527432000,-541.96496575,6.681e-05,2]
[422855384,1779527432000,-177.8381,6.581e-05,2]
[422855386,1779527432000,-333.303661,6.679e-05,2]
[422855385,1779527432000,-420.0,6.612e-05,2]
[422855389,1779527432000,-541.96496575,6.681e-05,2]
[422855383,1779527432000,-203.267679,6.513e-05,2]
[422855381,1779527432000,-269.59582555,6.386e-05,2]
[422855382,1779527432000,-396.732321,6.513e-05,2]
[422855379,1779527432000,-500.0,6.386e-05,2]
[422855380,1779527432000,-500.0,6.386e-05,2]
[422855375,1779527432000,-200.0,6.11e-05,2]
[422855374,1779527432000,-331.0,6.109e-05,2]
[422855387,1779527432000,-150.696339,6.679e-05,2]
[422855419,1779527438000,-476.4852672,6.681e-05,2]
[422855418,1779527438000,-541.96496575,6.681e-05,2]
[422855417,1779527438000,-541.96496575,6.681e-05,2]
[422855415,1779527438000,-541.96496575,6.681e-05,2]
[422855410,1779527438000,-485.82478739,6.681e-05,2]
[422855411,1779527438000,-541.96496575,6.681e-05,2]
[422855414,1779527438000,-541.96496575,6.681e-05,2]
[422855412,1779527438000,-541.96496575,6.681e-05,2]
[422855416,1779527438000,-541.96496575,6.681e-05,2]
[422855413,1779527438000,-541.96496575,6.681e-05,2]
[422855420,1779527438000,-65.47969855,6.681e-05,2]
[422855428,1779527438000,-555.51408988,6.681e-05,2]
[422855421,1779527438000,-555.51408988,6.681e-05,2]
[422855422,1779527438000,-555.51408988,6.681e-05,2]
[422855432,1779527438000,-729.83058016,6.681e-05,2]
[422855429,1779527438000,-555.51408988,6.681e-05,2]
[422855431,1779527438000,-729.83058016,6.681e-05,2]
[422855427,1779527438000,-555.51408988,6.681e-05,2]
[422855430,1779527438000,-555.51408988,6.681e-05,2]
[422855426,1779527438000,-555.51408988,6.681e-05,2]
[422855425,1779527438000,-555.51408988,6.681e-05,2]
[422855424,1779527438000,-555.51408988,6.681e-05,2]
[422855423,1779527438000,-555.51408988,6.681e-05,2]
[422855433,1779527438000,-10753.60003528,6.682e-05,2]
[422855447,1779527440000,-1715.96651473,6.614e-05,2]
[422855572,1779527446000,-4106.6052296,6.682e-05,2]
[422855567,1779527446000,-3284.03348527,6.614e-05,2]
[422855570,1779527446000,-15294.47305245,6.682e-05,2]
[422855565,1779527446000,-4542.3765915,6.548e-05,2]
[422855517,1779527446000,-457.6234085,6.548e-05,2]
[422855683,1779527450000,-17640.16221869,6.682e-05,2]
[422855687,1779527450000,-7116.71880928,6.682e-05,2]
[422855686,1779527450000,-608.45055747,6.682e-05,2]
[422855689,1779527450000,-1300.36031352,6.682e-05,2]
[422855690,1779527450000,-3745.2009488,6.682e-05,2]
[422855688,1779527450000,-2070.0,6.682e-05,2]
[422855692,1779527457000,176.855538,6.942e-05,120]
[422855694,1779527751000,152.0,6.86e-05,30]
[422855693,1779527751000,152.0,6.86e-05,30]
[422855760,1779528631000,-4821.69605822,5.25e-05,2]
[422855805,1779528638000,-178.30394178,5.25e-05,2]
[422855808,1779528638000,-983.59412008,5.303e-05,2]
[422855807,1779528638000,-1658.44732523,5.303e-05,2]
[422855806,1779528638000,-1014.9536041,5.303e-05,2]
[422855821,1779528640000,-378.2160755,5.41e-05,2]
[422855820,1779528640000,-1343.00495059,5.303e-05,2]
[422855848,1779528643000,-300.0,5.685e-05,2]
[422855845,1779528643000,-300.0,5.685e-05,2]
[422855843,1779528643000,-300.0,5.685e-05,2]
[422855844,1779528643000,-300.0,5.685e-05,2]
[422855846,1779528643000,-300.0,5.685e-05,2]
[422855831,1779528643000,-300.0,5.488e-05,2]
[422855832,1779528643000,-300.0,5.489e-05,2]
[422855830,1779528643000,-151.7839245,5.41e-05,2]
[422855833,1779528643000,-565.97723394,5.493e-05,2]
[422855849,1779528643000,-300.0,5.685e-05,2]
[422855842,1779528643000,-300.0,5.685e-05,2]
[422855834,1779528643000,-152.0,5.576e-05,7]
[422855847,1779528643000,-300.0,5.685e-05,2]
[422855852,1779528643000,-300.0,5.685e-05,2]
[422855850,1779528643000,-300.0,5.685e-05,2]
[422855851,1779528643000,-300.0,5.685e-05,2]
[422855853,1779528643000,-300.0,5.685e-05,2]
[422855841,1779528643000,-300.0,5.685e-05,2]
[422855838,1779528643000,-152.0,5.578e-05,7]
[422855839,1779528643000,-152.0,5.578e-05,7]
[422855836,1779528643000,-152.0,5.576e-05,7]
[422855840,1779528643000,-300.0,5.685e-05,2]
[422855861,1779528644000,-530.0,6.8e-05,2]
[422855854,1779528644000,-300.0,5.685e-05,2]
[422855855,1779528644000,-600.0,5.798e-05,2]
[422855858,1779528644000,-570.44961005,6.515e-05,2]
[422855857,1779528644000,-720.0,6.377e-05,2]
[422855856,1779528644000,-420.0,6.037e-05,2]
[422855860,1779528644000,-587.0,6.64e-05,2]
[422855864,1779528644000,-600.0,7.305e-05,2]
[422855862,1779528644000,-176.855538,6.942e-05,2]
[422855863,1779528644000,-864.0,7.015e-05,2]
[422855865,1779528644000,-667.85313605,7.493e-05,2]
[422855867,1779528644000,-1000.0,7.717e-05,2]
[422855869,1779528644000,-21582.96510092,8.019e-05,2]
[422855866,1779528644000,-8436.55671742,7.6e-05,2]
[422855868,1779528644000,-5287.74776921,7.919e-05,2]
[422855859,1779528644000,-550.9995335,6.62e-05,2]
[422855886,1779528646000,-7831.74376448,8.019e-05,2]
[422855884,1779528646000,-5000.0,5.356e-05,2]
[422855888,1779528646000,-1368.5381,8.219e-05,2]
[422855885,1779528646000,-152.0,5.578e-05,7]
[422855889,1779528646000,-250.20718993,8.219e-05,2]
[422855890,1779528646000,-500.0,8.219e-05,2]
[422855887,1779528646000,-50000.0,8.201e-05,2]
[422855891,1779528646000,-500.0,8.219e-05,2]
[422855907,1779528647000,-500.0,8.219e-05,2]
[422855913,1779528647000,-500.0,8.219e-05,2]
[422855904,1779528647000,-500.0,8.219e-05,2]
[422855912,1779528647000,-500.0,8.219e-05,2]
[422855905,1779528647000,-500.0,8.219e-05,2]
[422855898,1779528647000,-500.0,8.219e-05,2]
[422855893,1779528647000,-500.0,8.219e-05,2]
[422855909,1779528647000,-500.0,8.219e-05,2]
[422855925,1779528647000,-547.27,8.219e-05,2]
[422855892,1779528647000,-520.41,8.219e-05,2]
[422855896,1779528647000,-500.0,8.219e-05,2]
[422855894,1779528647000,-500.0,8.219e-05,2]
[422855900,1779528647000,-500.0,8.219e-05,2]
[422855899,1779528647000,-500.0,8.219e-05,2]
[422855901,1779528647000,-184.30144275,8.219e-05,2]
[422855902,1779528647000,-500.0,8.219e-05,2]
[422855895,1779528647000,-500.0,8.219e-05,2]
[422855897,1779528647000,-525.53,8.219e-05,2]
[422855916,1779528647000,-500.0,8.219e-05,2]
[422855908,1779528647000,-154.49300419,8.219e-05,2]
[422855924,1779528647000,-500.0,8.219e-05,2]
[422855923,1779528647000,-500.0,8.219e-05,2]
[422855919,1779528647000,-125.04218753,8.219e-05,2]
[422855926,1779528647000,-500.0,8.219e-05,2]
[422855927,1779528647000,-523.03,8.219e-05,2]
[422855928,1779528647000,-252.0885171,8.219e-05,2]
[422855922,1779528647000,-753.31,8.219e-05,2]
[422855920,1779528647000,-374.95781247,8.219e-05,2]
[422855921,1779528647000,-1971.88,8.219e-05,2]
[422855917,1779528647000,-536.79,8.219e-05,2]
[422855918,1779528647000,-517.92,8.219e-05,2]
[422855914,1779528647000,-693.92,8.219e-05,2]
[422855915,1779528647000,-584.61442371,8.219e-05,2]
[422855906,1779528647000,-621.41514891,8.219e-05,2]
[422855911,1779528647000,-500.0,8.219e-05,2]
[422855903,1779528647000,-500.0,8.219e-05,2]
[422855910,1779528647000,-500.32058069,8.219e-05,2]
[422855932,1779528770000,2198.09087749,0.00017808,120]
[422855933,1779528781000,152.0,6.863e-05,30]
[422855942,1779529257000,289.0,5e-05,5]
[422855988,1779529832000,-720.0,6.786e-05,2]
[422855972,1779529832000,-300.0,6.049e-05,2]
[422855976,1779529832000,-300.0,6.049e-05,2]
[422855978,1779529832000,-300.0,6.049e-05,2]
[422855980,1779529832000,-300.0,6.049e-05,2]
[422855981,1779529832000,-300.0,6.049e-05,2]
[422855979,1779529832000,-300.0,6.049e-05,2]
[422855982,1779529832000,-300.0,6.049e-05,2]
[422855983,1779529832000,-300.0,6.049e-05,2]
[422855971,1779529832000,-300.0,6.049e-05,2]
[422855985,1779529832000,-300.0,6.049e-05,2]
[422855986,1779529832000,-300.0,6.049e-05,2]
[422855987,1779529832000,-600.0,6.169e-05,2]
[422855991,1779529832000,-314.58608225,7.48e-05,2]
[422855989,1779529832000,-603.08707239,7.106e-05,2]
[422855990,1779529832000,-864.0,7.464e-05,2]
[422855995,1779529832000,-652.05819064,7.666e-05,2]
[422855984,1779529832000,-300.0,6.049e-05,2]
[422855970,1779529832000,-1200.0,5.812e-05,2]
[422855975,1779529832000,-300.0,6.049e-05,2]
[422855996,1779529832000,-419.99718282,8.055e-05,2]
[422855955,1779529832000,-384.15552416,5.553e-05,2]
[422855956,1779529832000,-841.35752164,5.553e-05,2]
[422855957,1779529832000,-1933.23575618,5.553e-05,2]
[422855958,1779529832000,-286.99598556,5.553e-05,2]
[422855959,1779529832000,-456.96737099,5.553e-05,2]
[422855965,1779529832000,-300.0,5.754e-05,2]
[422855974,1779529832000,-300.0,6.049e-05,2]
[422855964,1779529832000,-552.59168698,5.666e-05,2]
[422855960,1779529832000,-1097.28784147,5.553e-05,2]
[422855962,1779529832000,-152.0,5.576e-05,7]
[422855963,1779529832000,-5000.0,5.609e-05,2]
[422855968,1779529832000,-449.71659078,5.754e-05,2]
[422855967,1779529832000,-79.09517103,5.754e-05,2]
[422855969,1779529832000,-671.18823819,5.754e-05,2]
[422855973,1779529832000,-300.0,6.049e-05,2]
[422855961,1779529832000,-152.0,5.576e-05,7]
[422855992,1779529832000,-1257.08598467,7.48e-05,2]
[422855966,1779529832000,-300.0,5.754e-05,2]
[422855993,1779529832000,-170.60328854,7.652e-05,2]
[422856018,1779529832000,-500.0,8.219e-05,2]
[422856021,1779529832000,-503.63,8.219e-05,2]
[422856019,1779529832000,-500.0,8.219e-05,2]
[422856022,1779529832000,-312.01483167,8.219e-05,2]
[422856020,1779529832000,-500.0,8.219e-05,2]
[422856034,1779529832000,-317.80511448,8.219e-05,2]
[422856023,1779529832000,-500.0,8.219e-05,2]
[422856024,1779529832000,-224.52821222,8.219e-05,2]
[422856025,1779529832000,-500.0,8.219e-05,2]
[422856028,1779529832000,-500.0,8.219e-05,2]
[422856031,1779529832000,-500.0,8.219e-05,2]
[422856029,1779529832000,-500.0,8.219e-05,2]
[422856032,1779529832000,-500.0,8.219e-05,2]
[422856030,1779529832000,-500.0,8.219e-05,2]
[422856027,1779529832000,-500.0,8.219e-05,2]
[422856033,1779529832000,-500.0,8.219e-05,2]
[422855994,1779529832000,-681.730741,7.652e-05,2]
[422856017,1779529832000,-500.0,8.219e-05,2]
[422856015,1779529832000,-500.0,8.219e-05,2]
[422856026,1779529832000,-500.0,8.219e-05,2]
[422856013,1779529832000,-500.0,8.219e-05,2]
[422856016,1779529832000,-500.0,8.219e-05,2]
[422855998,1779529832000,-3776.19467074,8.055e-05,2]
[422855997,1779529832000,-1679.98873128,8.055e-05,2]
[422856003,1779529832000,-500.0,8.201e-05,2]
[422856001,1779529832000,-500.0,8.201e-05,2]
[422855999,1779529832000,-37119.38371698,8.201e-05,2]
[422856002,1779529832000,-500.0,8.201e-05,2]
[422856004,1779529832000,-500.0,8.201e-05,2]
[422856005,1779529832000,-500.0,8.201e-05,2]
[422856000,1779529832000,-12880.61628302,8.201e-05,2]
[422856008,1779529832000,-500.0,8.201e-05,2]
[422856011,1779529832000,-1311.5159,8.219e-05,2]
[422856012,1779529832000,-500.0,8.219e-05,2]
[422856007,1779529832000,-500.0,8.201e-05,2]
[422856014,1779529832000,-500.0,8.219e-05,2]
[422856006,1779529832000,-500.0,8.201e-05,2]
[422856009,1779529832000,-500.0,8.201e-05,2]
[422856010,1779529832000,-1000.0,8.211e-05,2]
[422856049,1779529838000,-205.25762848,8.107e-05,2]
[422856054,1779529838000,-500.0,8.107e-05,2]
[422856053,1779529838000,-500.0,8.107e-05,2]
[422856055,1779529838000,-500.0,8.107e-05,2]
[422856056,1779529838000,-500.0,8.107e-05,2]
[422856052,1779529838000,-500.0,8.107e-05,2]
[422856051,1779529838000,-500.0,8.107e-05,2]
[422856050,1779529838000,-500.0,8.107e-05,2]
[422856046,1779529838000,-500.0,8.107e-05,2]